bitfinex/quotes_SOLUSD_20250131
["timestamp","ask_amount","ask_price","bid_price","bid_amount"]
[1738337745823,0.78081196,240.2,240.08,20.0]
[1738337746859,20.0,240.21,240.08,20.0]
[1738337747025,20.78071521,240.21,240.08,20.0]
[1738337747927,0.78066384,240.2,240.08,20.0]
[1738337749054,1.06400468,240.25,240.09,0.12549]
[1738337749222,0.78077035,240.29,240.09,13.53733853]
[1738337749427,0.12549,240.28,240.09,13.53733853]
[1738337749628,0.78056172,240.27,240.09,13.53733853]
[1738337749930,0.25098,240.26,240.08,25.0]
[1738337750130,0.12549,240.24,240.08,25.0]
[1738337750358,0.78060179,240.27,240.09,13.41184853]
[1738337750657,0.12549,240.26,240.09,13.41184853]
[1738337750846,0.78056047,240.25,240.09,13.41184853]
[1738337752354,0.78056047,240.25,240.08,337.0]
[1738337752355,0.12549,240.24,240.08,25.0]
[1738337752652,0.78071325,240.23,240.08,25.0]
[1738337752949,20.0,240.24,240.08,25.0]
[1738337753162,0.78060714,240.23,240.08,25.0]
[1738337753451,0.12549,240.25,240.08,25.0]
[1738337753452,0.90611312,240.25,240.08,25.0]
[1738337754569,0.90611312,240.25,240.08,30.0]
[1738337755168,0.12549,240.24,240.08,30.0]
[1738337755336,0.12549,240.22,240.08,30.0]
[1738337755534,0.12549,240.2,240.08,30.0]
[1738337755738,0.78077726,240.19,240.08,30.0]
[1738337755954,0.78078889,240.21,240.08,30.0]
[1738337756159,0.12549,240.2,240.08,30.0]
[1738337756360,0.78075734,240.19,240.08,30.0]
[1738337757641,0.12549,240.2,240.08,30.0]
[1738337757642,0.78077979,240.2,240.08,30.0]
[1738337758150,0.12549,240.19,240.08,30.0]
[1738337759057,0.78077979,240.2,240.08,30.0]
[1738337759250,0.78071767,240.19,240.08,35.0]
[1738337759453,21.05260851,240.23,240.08,35.0]
[1738337759454,0.12549,240.21,240.08,35.0]
[1738337759656,0.12549,240.19,240.08,35.0]
[1738337759944,0.78084503,240.18,240.08,35.0]
[1738337760157,0.12549,240.19,240.08,35.0]
[1738337760552,0.78080314,240.18,240.08,35.0]
[1738337761067,0.12549,240.19,240.08,35.0]
[1738337761274,0.78074668,240.22,240.08,35.0]
[1738337761450,0.78065324,240.25,240.09,1.6631]
[1738337761659,0.78065324,240.25,240.1,6.1012]
[1738337761865,0.12549,240.24,240.1,6.1012]
[1738337762178,0.78062983,240.23,240.1,6.1012]
[1738337762555,1.92766915,240.28,240.1,6.1012]
[1738337762758,20.0,240.26,240.1,6.1012]
[1738337762957,0.78059725,240.25,240.1,6.1012]
[1738337763180,0.780526,240.25,240.1,6.1012]
[1738337763576,20.78060249,240.26,240.1,6.1012]
[1738337764564,20.0,240.22,240.1,6.1012]
[1738337764755,0.12549,240.2,240.1,6.1012]
[1738337764963,0.78078174,240.19,240.09,1.6631]
[1738337765475,0.78077717,240.21,240.09,1.6631]
[1738337765672,20.0,240.17,240.09,1.6631]
[1738337765986,0.78090067,240.16,240.09,1.6631]
[1738337766281,20.0,240.17,240.09,1.6631]
[1738337766483,0.78087419,240.19,240.09,1.6631]
[1738337766779,20.0,240.18,240.09,1.6631]
[1738337766949,0.78080523,240.17,240.09,1.6631]
[1738337767674,0.7808442,240.19,240.09,1.6631]
[1738337767876,0.12549,240.18,240.09,1.6631]
[1738337768054,0.78090602,240.17,240.09,1.6631]
[1738337768371,0.78090602,240.17,240.09,1.7261]
[1738337768563,0.78090602,240.17,240.09,0.063]
[1738337769071,0.78091143,240.19,240.09,0.063]
[1738337769276,0.78080749,240.22,240.09,0.063]
[1738337769652,20.78080749,240.22,240.09,0.063]
[1738337770254,20.0,240.18,240.09,0.063]
[1738337770871,0.7807966,240.17,240.09,0.063]
[1738337771080,1.457,240.21,240.09,0.063]
[1738337771285,2.23768287,240.21,240.09,0.063]
[1738337771497,1.457,240.21,240.09,0.063]
[1738337771860,1.0407,240.21,240.09,0.063]
[1738337772268,21.4568,240.24,240.09,0.063]
[1738337772964,0.90608865,240.23,240.09,0.063]
[1738337773383,0.12549,240.22,240.09,0.063]
[1738337773583,0.12549,240.17,240.09,0.063]
[1738337773766,20.78086202,240.18,240.09,0.063]
[1738337774093,2.0812,240.24,240.09,0.063]
[1738337774463,1.0407,240.21,240.09,0.063]
[1738337776080,2.0812,240.24,240.09,0.063]
[1738337776269,2.86180203,240.24,240.09,0.063]
[1738337776467,0.12549,240.23,240.09,0.063]
[1738337776681,20.0,240.21,240.09,0.063]
[1738337776880,0.78082805,240.2,240.09,0.063]
[1738337777070,20.0,240.16,240.09,0.063]
[1738337777269,0.78088828,240.15,240.09,0.063]
[1738337777878,0.12549,240.14,240.09,0.0001]
[1738337778085,0.4164,240.12,240.09,0.0001]
[1738337778964,0.4163,240.16,240.09,0.0001]
[1738337779870,0.4163,240.2,240.09,0.0001]
[1738337780070,1.0706,240.25,240.12,6.2979]
[1738337780071,0.03,240.25,240.12,6.2979]
[1738337780479,0.03,240.25,240.13,3.3]
[1738337780787,0.03,240.25,240.15,1.6177]
[1738337783188,0.03,240.25,240.16,0.37647]
[1738337783383,0.03,240.25,240.16,0.25098]
[1738337783889,0.03,240.25,240.18,0.25098]
[1738337784096,0.03,240.25,240.2,13.66282853]
[1738337784269,0.03,240.31,240.21,0.12549]
[1738337784999,0.03,240.31,240.19,1.6646]
[1738337785375,0.03,240.31,240.2,3.34]
[1738337786583,0.03,240.31,240.19,1.6646]
[1738337786898,0.12549,240.28,240.19,1.6646]
[1738337787199,20.0,240.29,240.19,1.6646]
[1738337787581,1.4565,240.28,240.19,1.6646]
[1738337787999,0.4161,240.28,240.19,1.6646]
[1738337788578,0.03,240.31,240.2,0.25098]
[1738337789081,0.4461,240.31,240.2,20.25098]
[1738337789481,0.03,240.31,240.2,20.25098]
[1738337789878,0.03,240.31,240.19,1.6646]
[1738337790105,0.15549,240.31,240.19,1.6646]
[1738337790305,0.78039348,240.3,240.19,1.6646]
[1738337791306,0.03,240.31,240.19,1.6646]
[1738337791604,1.4864,240.31,240.19,1.6646]
[1738337791810,0.78039418,240.3,240.19,1.6646]
[1738337791991,0.12549,240.29,240.19,1.6646]
[1738337792397,0.90594658,240.29,240.19,1.6646]
[1738337792597,20.0,240.24,240.17,6.1187]
[1738337792810,5.71300377,240.31,240.17,6.1187]
[1738337792988,1.4864,240.31,240.17,6.1187]
[1738337793390,0.78037287,240.3,240.17,6.1187]
[1738337793594,1.4565,240.28,240.17,6.1187]
[1738337794411,20.0,240.24,240.17,6.1187]
[1738337794618,20.0,240.24,240.19,0.063]
[1738337794817,0.78059978,240.23,240.19,0.063]
[1738337795023,20.0,240.19,240.13,1.5155]
[1738337795194,0.7807563,240.18,240.09,0.0001]
[1738337795510,20.0,240.14,240.09,0.0001]
[1738337795711,0.4164,240.13,240.09,0.0001]
[1738337796595,1.19728514,240.13,240.09,0.0001]
[1738337797204,1.19730954,240.13,240.09,0.0001]
[1738337797399,0.4164,240.13,240.09,0.0001]
[1738337797733,1.0408,240.19,240.09,0.0001]
[1738337798018,0.78065623,240.18,240.09,0.0001]
[1738337798517,0.12549,240.17,240.09,0.0001]
[1738337798720,0.12549,240.15,240.09,0.0001]
[1738337798927,20.0,240.12,240.09,0.0001]
[1738337799138,0.78097396,240.11,240.09,0.0001]
[1738337799500,20.0,240.12,240.09,0.0001]
[1738337799693,0.4164,240.13,240.09,0.0001]
[1738337801026,0.78091941,240.12,240.09,0.0001]
[1738337801802,0.4164,240.11,240.09,0.0001]
[1738337803826,1.58299,240.13,240.09,0.0001]
[1738337804005,2.36396349,240.13,240.09,0.0001]
[1738337804619,20.0,240.05,240.01,1.6435]
[1738337804920,0.78118797,240.04,239.97,0.063]
[1738337805617,20.0,240.05,239.97,0.063]
[1738337806120,1.4579,240.04,239.97,0.063]
[1738337806320,2.23910333,240.04,239.97,0.063]
[1738337806623,0.78125945,240.03,239.97,0.063]
[1738337806821,1.4579,240.04,239.97,0.063]
[1738337807006,0.90668457,240.03,239.97,0.063]
[1738337807403,0.12549,239.98,239.97,0.0001]
[1738337807636,20.0,239.99,239.9,0.063]
[1738337807918,2.23922161,240.04,239.9,0.063]
[1738337808120,20.0,240.0,239.9,0.063]
[1738337808328,0.78138602,239.99,239.9,0.063]
[1738337808701,20.0,240.0,239.9,0.063]
[1738337808902,1.4579,240.04,239.9,0.063]
[1738337809322,0.4165,240.04,239.91,9.2312]
[1738337810134,0.4165,240.07,239.91,9.2312]
[1738337810517,0.4165,240.07,239.95,6.1734]
[1738337810936,14.59538354,240.15,239.95,6.1734]
[1738337811111,20.0,240.12,239.95,6.1734]
[1738337811315,0.78097102,240.11,239.95,6.1734]
[1738337811525,1.82793617,240.14,239.96,3.38]
[1738337811728,0.78104164,240.14,239.96,3.38]
[1738337812114,0.78104164,240.14,239.96,7.5472]
[1738337812931,0.78104164,240.14,239.96,3.38]
[1738337813121,0.78104164,240.14,239.96,7.5473]
[1738337813319,0.78104164,240.14,239.96,3.38]
[1738337813526,0.78104164,240.14,239.96,2.88]
[1738337814343,0.78104164,240.14,239.96,7.0472]
[1738337814539,2.90513097,240.15,239.97,13.41184853]
[1738337814712,0.12549,240.14,239.97,13.41184853]
[1738337814913,1.01606706,240.17,239.99,13.41184853]
[1738337815127,20.78091737,240.18,239.99,13.41184853]
[1738337815128,0.78077997,240.16,239.99,13.41184853]
[1738337815327,0.12549,240.15,239.98,1.6592]
[1738337815645,0.12549,240.13,239.98,1.6592]
[1738337815948,0.12549,240.11,239.98,1.6592]
[1738337816242,0.78108076,240.1,239.98,1.6592]
[1738337816544,0.78107589,240.12,239.98,1.6592]
[1738337816747,0.12549,240.07,239.98,1.6592]
[1738337817047,0.25098,240.05,239.95,6.1734]
[1738337817224,0.12549,240.01,239.95,6.1734]
[1738337817532,0.12549,239.99,239.92,1.6592]
[1738337817739,0.78144227,240.01,239.92,1.6592]
[1738337817952,0.78134412,240.04,239.92,1.6592]
[1738337818127,0.78120003,240.08,239.92,1.6592]
[1738337818446,0.78110119,240.1,239.92,5.8272]
[1738337818650,0.78105127,240.11,239.93,13.41184853]
[1738337818851,0.78105127,240.11,239.94,6.4497]
[1738337819145,1.01802695,240.14,239.97,13.41184853]
[1738337819334,0.78098978,240.16,239.97,13.41184853]
[1738337819517,0.25098,240.14,239.96,1.5838]
[1738337819841,0.03,240.04,239.97,13.41184853]
[1738337820058,0.03,240.04,240.0,6.426]
[1738337820351,0.03,240.04,240.01,3.36]
[1738337820649,0.78087349,240.2,240.03,21.6248]
[1738337820828,0.4163,240.2,240.04,13.41184853]
[1738337821033,0.4163,240.2,240.06,13.53733853]
[1738337821533,0.4163,240.2,240.09,20.0]
[1738337821739,0.4162,240.26,240.11,13.53733853]
[1738337822040,0.4162,240.26,240.13,13.53733853]
[1738337822228,0.4162,240.26,240.12,6.6019]
[1738337822640,0.4162,240.24,240.12,6.6019]
[1738337823131,0.4161,240.29,240.15,20.0]
[1738337823330,0.4161,240.29,240.17,1.5681]
[1738337823543,7.53310181,240.35,240.17,1.5681]
[1738337823544,0.4461,240.31,240.18,6.0293]
[1738337824429,0.4461,240.31,240.21,20.0]
[1738337824629,0.03,240.31,240.21,13.53733853]
[1738337824835,0.03,240.31,240.21,20.0]
[1738337825635,0.03,240.31,240.2,1.5976]
[1738337828255,0.03,240.31,240.2,5.7606]
[1738337828432,0.03,240.31,240.24,6.2645]
[1738337828636,0.03,240.31,240.25,5.7152]
[1738337829164,0.03,240.31,240.25,21.50072873]
[1738337829671,0.03,240.31,240.25,1.5529]
[1738337829849,0.03,240.31,240.25,4.9129]
[1738337830446,33.41184853,240.29,240.16,1.6544]
[1738337830657,0.4161,240.28,240.16,1.6544]
[1738337830842,0.4161,240.28,240.17,19.94782873]
[1738337831567,0.03,240.31,240.23,19.94782873]
[1738337831738,0.4461,240.31,240.25,19.94782873]
[1738337832050,0.4461,240.31,240.21,19.94782873]
[1738337832643,0.03,240.31,240.23,19.94782873]
[1738337833253,0.03,240.31,240.21,19.94782873]
[1738337833443,0.03,240.31,240.22,3.38]
[1738337833836,13.56733853,240.31,240.22,3.38]
[1738337834041,0.15549,240.31,240.22,3.38]
[1738337834668,0.03,240.31,240.22,3.38]
[1738337835391,0.03,240.31,240.23,19.94782873]
[1738337836085,0.03,240.31,240.22,3.38]
[1738337837991,0.03,240.31,240.23,19.94782873]
[1738337839196,0.03,240.31,240.22,3.38]
[1738337841798,0.81027299,240.31,240.16,1.6544]
[1738337842094,14.19227814,240.3,240.17,3.36]
[1738337842663,20.78035949,240.3,240.17,3.36]
[1738337842870,20.0,240.3,240.17,3.36]
[1738337843077,13.53733853,240.29,240.16,1.6544]
[1738337843387,0.12549,240.27,240.16,5.0144]
[1738337843593,0.03,240.31,240.16,29.12602873]
[1738337843796,0.03,240.31,240.22,19.94782873]
[1738337844979,0.03,240.31,240.18,19.94782873]
[1738337845389,0.03,240.31,240.2,19.94782873]
[1738337845982,0.03,240.31,240.2,24.11092873]
[1738337846193,0.03,240.31,240.22,19.94782873]
[1738337846483,0.03,240.31,240.24,19.94782873]
[1738337846879,0.03,240.31,240.22,19.94782873]
[1738337847569,0.03,240.31,240.23,3.34]
[1738337847915,0.03,240.31,240.24,19.94782873]
[1738337848274,0.03,240.31,240.23,3.34]
[1738337849283,0.03,240.31,240.24,19.94782873]
[1738337849489,0.03,240.31,240.23,3.34]
[1738337852786,0.03,240.31,240.24,19.94782873]
[1738337854008,0.03,240.31,240.26,19.94782873]
[1738337854311,0.03,240.31,240.28,19.94782873]
[1738337854666,0.03,240.31,240.26,19.94782873]
[1738337855073,0.03,240.31,240.3,19.94782873]
[1738337855787,0.03,240.31,240.28,19.94782873]
[1738337856090,0.03,240.31,240.25,1.6661]
[1738337856473,0.03,240.31,240.24,19.94782873]
[1738337856676,0.03,240.31,240.21,6.4427]
[1738337856891,0.03,240.31,240.25,3.32]
[1738337857387,0.03,240.31,240.21,6.4427]
[1738337857589,0.03,240.31,240.22,3.32]
[1738337857902,1.4864,240.31,240.21,3.32]
[1738337858082,2.26667873,240.31,240.21,3.32]
[1738337858273,0.12549,240.3,240.16,19.94782873]
[1738337858476,0.78042605,240.29,240.15,4.1639]
[1738337858674,0.78044436,240.29,240.17,3.32]
[1738337858874,0.90592102,240.3,240.17,3.32]
[1738337859187,0.4461,240.31,240.18,19.94782873]
[1738337859488,0.4461,240.31,240.17,3.32]
[1738337859489,0.03,240.31,240.22,19.94782873]
[1738337859786,0.03,240.31,240.24,19.94782873]
[1738337859996,0.03,240.31,240.23,4.1625]
[1738337860491,0.03,240.31,240.22,19.94782873]
[1738337860796,0.03,240.31,240.2,19.94782873]
[1738337861176,0.03,240.31,240.21,3.3]
[1738337862105,0.03,240.31,240.2,3.3]
[1738337862686,20.0,240.3,240.2,3.3]
[1738337862926,0.03,240.31,240.2,3.3]
[1738337862927,0.03,240.31,240.22,19.94782873]
[1738337863901,0.03,240.31,240.24,19.94782873]
[1738337864078,0.03,240.31,240.24,24.11012873]
[1738337864405,0.03,240.31,240.27,0.12549]
[1738337865091,0.03,240.31,240.24,4.1623]
[1738337865880,0.03,240.31,240.24,24.11012873]
[1738337866192,0.03,240.31,240.25,4.28779]
[1738337866499,0.03,240.31,240.26,19.94782873]
[1738337866718,0.03,240.31,240.28,19.94782873]
[1738337866923,0.03,240.31,240.3,19.94782873]
[1738337867104,0.03,240.31,240.3,20.07331873]
[1738337868119,0.03,240.31,240.3,33.48516726]
[1738337868299,0.03,240.31,240.3,24.23471873]
[1738337869313,0.03,240.35,240.3,37.52107726]
[1738337869518,0.03,240.35,240.34,19.94782873]
[1738337869693,0.03,240.35,240.34,3.28]
[1738337869887,0.03,240.35,240.34,23.35331873]
[1738337870305,0.03,240.35,240.34,27.51401873]
[1738337870505,1.5985,240.47,240.37,0.12549]
[1738337872912,0.4158,240.47,240.37,0.12549]
[1738337873309,6.0519,240.49,240.37,0.12549]
[1738337873517,0.4158,240.48,240.37,0.12549]
[1738337874196,1.19559545,240.48,240.37,0.12549]
[1738337874519,20.0,240.44,240.3,312.0]
[1738337874819,20.0,240.44,240.32,19.94782873]
[1738337875291,20.0,240.44,240.31,0.12549]
[1738337875292,0.4158,240.45,240.35,0.12549]
[1738337876506,0.4158,240.47,240.44,19.94782873]
[1738337876818,0.4158,240.5,240.44,19.94782873]
[1738337877423,0.4158,240.5,240.42,19.94782873]
[1738337877625,0.03,240.51,240.42,19.94782873]
[1738337878697,0.03,240.51,240.4,19.94782873]
[1738337879021,0.03,240.51,240.41,3.24]
[1738337880424,0.80965185,240.51,240.36,19.94782873]
[1738337880612,0.80965185,240.51,240.36,3.24]
[1738337880613,20.0,240.46,240.36,3.24]
[1738337880815,0.77983755,240.45,240.29,19.94782873]
[1738337881020,0.77983755,240.45,240.28,1.5457]
[1738337881021,20.0,240.41,240.28,1.5457]
[1738337881201,0.78007801,240.4,240.28,1.5457]
[1738337881524,0.12549,240.39,240.28,1.5457]
[1738337881818,0.4159,240.41,240.33,19.94782873]
[1738337882016,0.4159,240.43,240.35,19.94782873]
[1738337882401,0.77983072,240.42,240.28,5.7073]
[1738337882604,0.12549,240.41,240.28,1.5457]
[1738337882819,0.12549,240.41,240.25,23.20782873]
[1738337882820,0.7801085,240.4,240.25,23.20782873]
[1738337883013,0.7801085,240.4,240.26,0.12549]
[1738337883212,0.7801085,240.4,240.25,23.20782873]
[1738337883830,1.456,240.38,240.24,3.34]
[1738337884005,1.456,240.38,240.27,19.94782873]
[1738337884322,0.416,240.38,240.28,0.12549]
[1738337884624,0.416,240.38,240.3,0.12549]
[1738337884821,0.416,240.38,240.31,19.94782873]
[1738337885121,0.4159,240.42,240.32,0.12549]
[1738337885500,0.4159,240.42,240.33,19.94782873]
[1738337885696,0.4158,240.46,240.35,19.94782873]
[1738337886235,20.4158,240.46,240.33,24.23421873]
[1738337886832,20.4158,240.46,240.33,20.07331873]
[1738337887343,0.12549,240.45,240.31,19.94782873]
[1738337887540,0.77995381,240.44,240.31,19.94782873]
[1738337887831,0.4159,240.42,240.32,3.34]
[1738337888037,0.4159,240.42,240.33,19.94782873]
[1738337888339,0.4159,240.44,240.34,0.12549]
[1738337888526,0.4159,240.44,240.33,19.94782873]
[1738337888527,0.4159,240.44,240.36,0.12549]
[1738337889339,0.77979961,240.48,240.42,0.12549]
[1738337889506,0.03,240.51,240.42,0.12549]
[1738337889507,0.03,240.51,240.45,0.12549]
[1738337889834,0.03,240.51,240.46,3.34]
[1738337890044,0.03,240.51,240.47,0.12549]
[1738337890339,7.98e-05,240.71,240.7,1.0]
[1738337890506,76.22269764,240.87,240.78,1.0]
[1738337890710,76.22269764,240.87,240.78,19.94782873]
[1738337890910,76.22269764,240.87,240.78,20.57057791]
[1738337891126,7.41757074,240.81,240.78,20.57057791]
[1738337891333,12.98309571,240.8,240.79,4.27839]
[1738337891504,12.98309571,240.8,240.79,24.22621873]
[1738337891701,7.41757074,240.81,240.79,44.17404746]
[1738337891929,7.41757074,240.81,240.8,0.74823038]
[1738337892126,25.85200726,240.82,240.81,60.02114746]
[1738337892331,63.5189147,240.91,240.82,13.41184853]
[1738337892534,63.5189147,240.91,240.84,20.12549]
[1738337892713,26.78317159,240.85,240.84,60.64377444]
[1738337893137,0.4149,240.99,240.85,0.12549]
[1738337893346,0.4149,240.99,240.91,19.94782873]
[1738337893645,13.41184853,241.07,240.92,0.62253514]
[1738337893805,1.0,241.09,240.93,20.94782873]
[1738337894007,1.0,241.09,240.94,0.62244036]
[1738337894427,1.25098,241.09,240.95,19.94782873]
[1738337894641,0.15,241.27,240.95,19.94782873]
[1738337894642,1.4504,241.3,240.96,1.62243729]
[1738337894936,2.104146,241.12,240.96,2.62243729]
[1738337895135,20.0,241.27,240.96,20.94392453]
[1738337895316,0.12549,241.28,240.96,20.32148724]
[1738337895519,1.4505,241.27,240.97,0.62245164]
[1738337895729,16.97184853,241.26,240.96,17.58325411]
[1738337895931,0.12549,241.25,240.97,8.23626099]
[1738337896116,3.56,241.25,240.97,8.23626099]
[1738337896313,3.56,241.25,240.98,13.41184853]
[1738337896513,3.56,241.25,240.98,21.64810952]
[1738337896818,6.4363,241.27,240.98,21.64810952]
[1738337897143,6.4363,241.27,240.98,8.23626099]
[1738337897344,3.56,241.24,240.98,8.23626099]
[1738337897550,20.0,241.21,240.99,8.23626099]
[1738337897720,0.99,243.27,240.99,8.23626099]
[1738337897920,3.56,241.29,240.99,8.23626099]
[1738337898122,14.29878325,241.28,240.99,8.23626099]
[1738337898337,13.53733853,241.26,240.99,8.23626099]
[1738337898518,13.53733853,241.24,241.19,24.48661493]
[1738337898711,0.5606,241.21,241.0,8.23626099]
[1738337899038,0.5606,241.21,240.96,11.05550274]
[1738337899039,0.12549,241.19,240.89,1.0]
[1738337899246,0.12549,241.19,240.9,3.54]
[1738337899418,0.12549,241.17,240.9,3.54]
[1738337899617,13.41184853,241.15,240.93,13.41184853]
[1738337900226,20.0,241.12,240.93,1.0]
[1738337900437,1.47080169,241.16,241.0,13.41184853]
[1738337900622,0.4146,241.16,241.0,14.03415653]
[1738337900820,0.12549,241.18,241.0,0.622308]
[1738337901026,13.53733853,241.18,240.95,2.0]
[1738337901336,20.0,241.15,240.99,13.41184853]
[1738337901711,0.12549,241.15,240.99,13.41184853]
[1738337902338,20.0,241.16,240.99,13.41184853]
[1738337902627,20.0,241.16,241.01,13.41184853]
[1738337903036,0.12549,241.18,241.01,13.41184853]
[1738337903413,0.12549,241.18,240.99,2.0]
[1738337903631,0.12549,241.18,240.99,2.6223157]
[1738337903829,0.12549,241.18,240.99,13.41184853]
[1738337904335,13.53733853,241.18,240.96,1.0]
[1738337904524,21.02540397,241.19,240.98,13.41184853]
[1738337904728,0.12549,241.17,240.98,13.41184853]
[1738337905234,0.12549,241.13,240.99,3.52]
[1738337906140,0.12549,241.13,240.92,1.0]
[1738337906314,0.12549,241.09,240.94,3.5]
[1738337906519,0.12549,241.09,240.88,3.5]
[1738337906733,0.12549,241.09,240.89,13.41184853]
[1738337906920,3.5,241.2,240.88,3.5]
[1738337906921,20.0,241.08,240.88,3.5]
[1738337907129,0.12549,241.07,240.88,3.5]
[1738337907649,20.12549,241.03,240.86,13.41184853]
[1738337907845,20.0,241.03,240.89,13.41184853]
[1738337908018,20.0,241.03,240.89,14.03443117]
[1738337908422,1.04283412,241.08,240.93,13.41184853]
[1738337908756,5.2626,241.13,240.93,14.03432784]
[1738337908922,20.0,241.1,240.93,14.03432784]
[1738337909122,20.0,241.1,240.91,13.41184853]
[1738337909320,0.12549,241.09,240.86,2.62250349]
[1738337909548,0.12549,241.05,240.86,13.41184853]
[1738337909760,0.12549,241.05,240.89,13.41184853]
[1738337910342,0.12549,241.08,240.89,1.0]
[1738337910521,20.0,241.09,240.92,1.0]
[1738337910733,20.0,241.09,240.94,13.41184853]
[1738337911328,20.0,241.1,240.93,13.41184853]
[1738337911526,20.0,241.1,240.93,14.41184853]
[1738337911726,20.0,241.1,240.91,0.62257778]
[1738337911727,20.0,241.1,240.91,14.41184853]
[1738337911928,0.12549,241.09,240.92,13.41184853]
[1738337912458,13.53733853,241.09,240.87,13.41184853]
[1738337912745,13.53733853,241.09,240.87,14.41184853]
[1738337912931,13.53733853,241.09,240.85,1.6052]
[1738337913132,0.12549,240.99,240.81,13.41184853]
[1738337913346,20.0,241.02,240.84,1.0]
[1738337913526,20.0,241.02,240.83,13.41184853]
[1738337913726,0.12549,241.01,240.84,1.0]
[1738337913956,0.12549,241.01,240.82,13.41184853]
[1738337914152,0.12549,241.01,240.84,1.0]
[1738337914325,0.12549,241.01,240.82,1.0]
[1738337914526,0.12549,241.01,240.83,0.62277463]
[1738337914748,30.0,241.22,240.85,1.0]
[1738337914950,20.0,241.04,240.86,13.41184853]
[1738337915245,0.12549,241.03,240.86,13.41184853]
[1738337915827,33.41184853,241.1,240.86,13.41184853]
[1738337916028,33.41184853,241.1,240.88,13.41184853]
[1738337916351,33.41184853,241.1,240.88,15.03445778]
[1738337916556,0.12549,241.07,240.88,14.41184853]
[1738337916933,0.12549,241.07,240.9,13.41184853]
[1738337918151,0.12549,241.07,240.86,0.063]
[1738337918731,0.12549,241.01,240.86,0.063]
[1738337920233,20.0,241.03,240.86,0.063]
[1738337920734,0.12549,241.02,240.81,13.41184853]
[1738337921041,0.12549,241.02,240.82,1.6227989]
[1738337921345,0.12549,241.02,240.83,13.41184853]
[1738337922543,0.12549,241.02,240.84,0.62276781]
[1738337922749,0.12549,241.02,240.83,14.03455086]
[1738337923058,13.53733853,241.02,240.8,38.90172474]
[1738337924453,20.0,240.92,240.8,35.94152474]
[1738337924638,20.0,240.92,240.8,35.39932474]
[1738337925050,21.04858037,240.92,240.8,35.39932474]
[1738337925237,20.0,240.92,240.8,35.39932474]
[1738337925642,21.06291035,240.92,240.8,35.39932474]
[1738337925852,0.12549,240.91,240.8,35.18232474]
[1738337926237,0.12549,240.89,240.73,0.063]
[1738337926562,20.0,240.86,240.73,0.063]
[1738337926934,21.6101,240.9,240.73,0.063]
[1738337927129,0.12549,240.89,240.73,0.063]
[1738337928353,0.12549,240.85,240.66,1.62304397]
[1738337928564,0.12549,240.85,240.69,1.0]
[1738337928760,20.0,240.86,240.67,15.03504437]
[1738337928939,0.12549,240.85,240.66,13.41184853]
[1738337929455,20.0,240.82,240.66,13.41184853]
[1738337929761,20.0,240.82,240.73,0.063]
[1738337930260,0.03,240.86,240.73,0.063]
[1738337930957,0.12549,240.84,240.73,0.063]
[1738337931851,0.12549,240.84,240.6,13.47484853]
[1738337931852,0.12549,240.79,240.6,13.47484853]
[1738337932249,0.12549,240.77,240.63,1.0]
[1738337932454,1.6346,240.78,240.65,1.0]
[1738337932637,30.0,240.79,240.66,0.62319967]
[1738337932847,5.2626,240.83,240.66,0.62319967]
[1738337933553,20.0,240.8,240.66,1.0]
[1738337933939,20.0,240.8,240.67,0.62318094]
[1738337934163,20.0,240.8,240.69,2.0]